bitfinex/quotes_SOLUSD_20250823
["timestamp","ask_amount","ask_price","bid_price","bid_amount"]
[1755945889193,81.692532,202.97,202.96,0.03]
[1755945891301,81.032532,202.97,202.96,0.03]
[1755945891477,79.06,202.97,202.96,0.03]
[1755945891678,81.032143,202.97,202.96,0.03]
[1755945891873,81.692143,202.97,202.96,0.03]
[1755945892980,139.45147231,202.97,202.96,0.03]
[1755945893178,54.22773701,202.97,202.96,0.03]
[1755945893504,40.632143,202.97,202.96,0.03]
[1755945893696,47.1787383,202.97,202.96,0.03]
[1755945894310,9.1787383,202.97,202.96,0.03]
[1755945894479,47.1587383,202.97,202.96,0.03]
[1755945894794,60.81433231,202.97,202.96,0.03]
[1755945894977,54.26773701,202.97,202.96,0.03]
[1755945895172,60.81433231,202.97,202.96,0.03]
[1755945895876,47.2187383,202.97,202.96,0.03]
[1755945897201,2.692143,202.97,202.96,0.03]
[1755945906122,9.2387383,202.97,202.96,0.03]
[1755945907329,2.032143,202.97,202.96,7.2565953]
[1755945907498,0.06,202.97,202.96,7.2565953]
[1755945908398,0.06,202.97,202.96,10.61017442]
[1755945909792,0.06,202.97,202.96,10.60970905]
[1755945910521,0.06,202.97,202.96,10.60978583]
[1755945913198,0.06,202.97,202.96,9.92978583]
[1755945913901,0.00520158,202.97,202.96,49.80970298]
[1755945914229,0.06,203.0,202.97,0.28432314]
[1755945914437,0.06,203.0,202.99,6.5465953]
[1755945914723,0.06,203.0,202.99,9.89978583]
[1755945919528,0.06,203.01,202.99,50.28099491]
[1755945919732,0.06,203.02,203.01,0.28432314]
[1755945919954,0.06,203.02,203.01,55.81361321]
[1755945920309,0.06,203.03,203.01,55.81361321]
[1755945920517,0.06,203.03,203.02,10.1927658]
[1755945922456,0.06,203.03,203.02,13.86128142]
[1755945924263,0.06,203.03,203.02,15.83206442]
[1755945924443,0.75,203.03,203.02,3.36184736]
[1755945924644,0.75,203.03,203.02,13.57695828]
[1755945928658,0.75,203.03,203.02,18.99698235]
[1755945928659,0.06,203.03,203.02,18.99698235]
[1755945929033,0.06,203.03,203.02,56.93698235]
[1755945930667,0.06,203.03,203.02,46.72187143]
[1755945930963,0.06,203.03,203.02,56.93698235]
[1755945934558,0.06,203.03,203.02,57.22130549]
[1755945934765,0.06,203.03,203.02,51.68863866]
[1755945935073,0.06,203.03,203.02,91.77679497]
[1755945935373,0.06,203.03,203.02,97.29465625]
[1755945935534,0.06,203.03,203.02,99.26524525]
[1755945936150,0.06,203.03,203.02,85.66965124]
[1755945936367,0.06,203.03,203.02,83.69906224]
[1755945936551,0.06,203.03,203.02,85.66984624]
[1755945937970,0.06,203.03,203.02,78.18120096]
[1755945938141,0.78,203.03,203.02,77.68522464]
[1755945938334,0.78,203.03,203.02,82.91876278]
[1755945938560,0.78,203.03,203.02,79.6729722]
[1755945939063,0.06,203.03,203.02,79.6729722]
[1755945939366,0.78,203.03,203.02,79.6729722]
[1755945940469,0.78,203.03,203.02,74.15511092]
[1755945942662,0.78,203.03,203.02,63.94]
[1755945942863,0.78,203.03,203.02,74.15511092]
[1755945944783,0.06,203.03,203.02,74.15511092]
[1755945947176,0.06,203.03,203.02,88.03502807]
[1755945947468,0.06,203.03,203.02,88.52759037]
[1755945948149,0.06,203.03,203.02,90.49827637]
[1755945951678,0.06,203.03,203.02,90.00571407]
[1755945951858,0.78,203.03,203.02,88.03502807]
[1755945953077,0.06,203.03,203.02,88.03502807]
[1755945955175,0.78,203.03,203.02,88.03502807]
[1755945955881,0.06,203.03,203.02,88.03502807]
[1755945956293,0.06,203.06,203.05,26.0]
[1755945956598,0.78,203.1,203.08,26.0]
[1755945956760,0.06,203.1,203.08,74.13511092]
[1755945957364,0.76,203.09,203.08,76.10540892]
[1755945959879,0.06,203.09,203.08,76.10540892]
[1755945963198,0.76,203.09,203.08,76.10540892]
[1755945964090,0.06,203.09,203.08,76.10540892]
[1755945964478,0.06,203.09,203.08,90.47774285]
[1755945964799,0.06,203.09,203.08,105.54820913]
[1755945965298,0.06,203.09,203.08,95.54820913]
[1755945965508,0.06,203.09,203.08,105.54820913]
[1755945965738,0.06,203.1,203.09,24.09502807]
[1755945965925,0.06,203.12,203.1,20.49943406]
[1755945966094,0.06,203.13,203.12,50.09502807]
[1755945966299,0.7,203.21,203.13,13.87991715]
[1755945966536,0.7,203.2,203.14,88.01502807]
[1755945967147,0.7,203.19,203.14,89.98416207]
[1755945967930,0.2,203.24,203.14,89.98416207]
[1755945968136,0.7,203.21,203.14,89.98416207]
[1755945968340,0.7,203.21,203.14,70.15063653]
[1755945968704,0.7,203.23,203.16,39.59559401]
[1755945968904,0.2,203.24,203.17,48.13511092]
[1755945969137,0.7,203.21,203.17,48.13511092]
[1755945969905,0.9,203.18,203.17,48.13511092]
[1755945970538,0.9,203.18,203.17,52.06037226]
[1755945970740,0.9,203.18,203.17,48.13511092]
[1755945971348,0.2,203.18,203.17,48.13511092]
[1755945971516,0.2,203.18,203.17,72.13955999]
[1755945973237,0.9,203.18,203.17,68.16150253]
[1755945973946,0.2,203.18,203.17,68.16150253]
[1755945974708,0.2,203.18,203.17,70.13073353]
[1755945974917,0.2,203.18,203.17,32.23073353]
[1755945975143,0.9,203.18,203.17,70.13073353]
[1755945975710,0.2,203.18,203.17,70.13073353]
[1755945977062,0.9,203.18,203.17,1.969231]
[1755945977247,0.9,203.18,203.16,37.92]
[1755945977449,0.2,203.18,203.16,37.92]
[1755945977645,0.7,203.17,203.16,37.92]
[1755945977862,0.7,203.17,203.16,48.13511092]
[1755945979671,0.7,203.17,203.15,37.94]
[1755945981560,0.7,203.16,203.15,48.15511092]
[1755945983841,0.7,203.16,203.15,37.94]
[1755945984055,0.7,203.16,203.15,48.15511092]
[1755945984846,0.2,203.18,203.15,48.15511092]
[1755945985068,0.7,203.17,203.16,10.21511092]
[1755945986441,0.2,203.18,203.17,13.87991715]
[1755945986781,0.2,203.18,203.17,62.71502807]
[1755945986952,0.2,203.18,203.17,88.71502807]
[1755945987153,0.2,203.18,203.17,90.68425907]
[1755945987469,0.2,203.18,203.17,90.02425907]
[1755945990365,0.2,203.18,203.17,88.05502807]
[1755945991767,0.2,203.18,203.17,62.75502807]
[1755945992346,0.2,203.18,203.17,62.05502807]
[1755945992974,0.06,203.21,203.2,39.59559401]
[1755945993267,0.06,203.21,203.2,88.05502807]
[1755945993472,0.06,203.21,203.2,88.75502807]
[1755945993672,0.06,203.21,203.2,90.72377407]
[1755945996989,0.0211353,203.21,203.2,101.43101097]
[1755945997781,0.0211353,203.21,203.2,91.21590005]
[1755945998356,0.06,203.23,203.21,13.87991715]
[1755945998574,0.06,203.23,203.22,62.03502807]
[1755945998766,0.06,203.23,203.22,62.73502807]
[1755945998972,0.06,203.23,203.22,64.70358107]
[1755945999491,0.06,203.23,203.22,64.00358107]
[1755945999674,0.2,203.24,203.22,64.70358107]
[1755945999879,0.2,203.24,203.23,24.09502807]
[1755946000080,0.2,203.24,203.23,24.79502807]
[1755946001096,0.2,203.24,203.23,24.09502807]
[1755946001601,0.2,203.24,203.23,24.79502807]
[1755946002771,0.2,203.24,203.23,24.09502807]
[1755946003010,0.2,203.24,203.23,62.03502807]
[1755946003699,0.2,203.24,203.23,64.00338607]
[1755946004517,0.2,203.24,203.23,61.75070493]
[1755946004693,0.2,203.24,203.23,62.03502807]
[1755946004998,0.2,203.24,203.23,72.25013907]
[1755946006096,0.2,203.24,203.23,62.03502807]
[1755946006293,0.2,203.24,203.23,51.81991715]
[1755946006506,0.86,203.24,203.23,10.21511092]
[1755946006677,0.86,203.24,203.22,10.21511092]
[1755946007002,0.66,203.23,203.22,48.19511092]
[1755946007801,0.66,203.23,203.22,37.98]
[1755946008104,0.66,203.23,203.21,37.98]
[1755946011883,10.21511092,203.22,203.17,0.03]
[1755946012301,10.21511092,203.2,203.17,0.03]
[1755946012510,0.66,203.19,203.17,0.03]
[1755946012816,0.66,203.19,203.17,10.24511092]
[1755946012981,0.66,203.19,203.17,48.28511092]
[1755946013183,10.41511092,203.24,203.17,48.28511092]
[1755946013184,0.66,203.21,203.18,10.21511092]
[1755946013398,0.66,203.21,203.2,10.21511092]
[1755946013612,0.2,203.24,203.2,10.21511092]
[1755946013810,0.2,203.24,203.19,48.27511092]
[1755946014015,0.2,203.24,203.2,10.21511092]
[1755946014307,0.66,203.23,203.2,10.21511092]
[1755946014515,0.66,203.23,203.19,48.27511092]
[1755946015307,0.66,203.23,203.2,10.21511092]
[1755946018097,0.2,203.24,203.2,10.21511092]
[1755946018295,0.69,203.22,203.2,10.21511092]
[1755946018636,0.69,203.21,203.2,10.21511092]
[1755946020323,0.2,203.24,203.2,10.21511092]
[1755946020623,0.2,203.24,203.19,38.06]
[1755946020624,0.2,203.24,203.22,10.21511092]
[1755946020824,0.69,203.23,203.22,10.21511092]
[1755946021417,0.69,203.23,203.19,38.06]
[1755946021719,0.69,203.22,203.19,48.27511092]
[1755946021929,0.69,203.21,203.19,48.27511092]
[1755946022500,0.69,203.21,203.19,38.06]
[1755946023099,0.69,203.2,203.19,38.06]
[1755946024798,0.69,203.2,203.17,38.07]
[1755946024999,0.69,203.19,203.17,38.07]
[1755946025319,0.69,203.18,203.17,38.07]
[1755946025524,0.69,203.2,203.17,38.07]
[1755946025708,0.69,203.19,203.17,38.07]
[1755946026610,0.69,203.19,203.17,48.28511092]
[1755946027599,0.69,203.19,203.17,38.07]
[1755946028702,0.69,203.18,203.17,38.07]
[1755946030425,0.69,203.18,203.17,0.03]
[1755946033335,10.21511092,203.2,203.17,0.03]
[1755946033709,0.69,203.19,203.17,0.03]
[1755946034120,0.69,203.18,203.17,0.03]
[1755946034406,0.69,203.19,203.17,0.03]
[1755946036506,0.69,203.18,203.17,0.03]
[1755946037328,10.21511092,203.21,203.17,0.03]
[1755946037526,0.69,203.19,203.17,0.03]
[1755946039826,0.06,203.23,203.17,0.03]
[1755946040052,0.69,203.19,203.17,0.03]
[1755946041956,10.90511092,203.19,203.17,0.03]
[1755946042953,0.69,203.18,203.17,0.03]
[1755946043848,10.90511092,203.19,203.17,0.03]
[1755946044454,7.2235426,203.19,203.17,0.03]
[1755946046530,0.69,203.18,203.17,0.03]
[1755946047932,0.72,203.19,203.17,0.03]
[1755946051158,7.2535426,203.21,203.17,0.03]
[1755946051335,0.72,203.2,203.17,0.03]
[1755946052547,0.72,203.19,203.17,0.03]
[1755946052861,0.72,203.18,203.17,0.03]
[1755946054356,6.5335426,203.2,203.17,0.03]
[1755946054357,0.72,203.2,203.17,0.03]
[1755946054971,0.72,203.19,203.17,0.03]
[1755946055133,6.5335426,203.21,203.17,0.03]
[1755946055464,0.72,203.2,203.17,0.03]
[1755946056060,0.72,203.19,203.17,0.03]
[1755946060176,0.72,203.18,203.17,0.03]
[1755946067762,0.06,203.23,203.17,0.03]
[1755946067964,0.72,203.2,203.17,0.03]
[1755946071476,0.72,203.19,203.17,0.03]
[1755946073096,0.06,203.23,203.17,0.03]
[1755946073325,0.72,203.18,203.17,0.03]
[1755946075222,6.5935426,203.23,203.17,0.03]
[1755946075377,0.72,203.19,203.17,0.03]
[1755946077413,6.5935426,203.23,203.17,0.03]
[1755946077615,0.67,203.18,203.17,0.03]
[1755946110743,0.67,203.18,203.17,6.563542]
[1755946111754,0.67,203.18,203.17,4.973542]
[1755946112044,64.67,203.18,203.14,0.03]
[1755946112229,33.233542,203.18,203.14,0.03]
[1755946112418,6.5335426,203.15,203.14,0.03]
[1755946112820,8.4135426,203.15,203.14,0.03]
[1755946113346,10.3841316,203.15,203.14,0.03]
[1755946113516,3.850589,203.15,203.14,0.03]
[1755946113721,10.3841316,203.15,203.14,0.03]
[1755946118334,48.4041316,203.15,203.14,0.03]
[1755946122838,41.290589,203.15,203.14,0.03]
[1755946123047,41.870589,203.15,203.14,0.03]
[1755946123258,48.3641316,203.15,203.14,0.03]
[1755946126144,10.3841316,203.15,203.14,0.03]
[1755946126345,48.3641316,203.15,203.14,0.03]
[1755946131445,47.7841316,203.15,203.14,0.03]
[1755946135166,47.7441316,203.15,203.14,0.03]
[1755946136871,47.7241316,203.15,203.14,0.03]
[1755946138174,9.8041316,203.15,203.14,0.03]
[1755946138369,47.7241316,203.15,203.14,0.03]
[1755946138881,39.87991715,203.1,203.09,0.03]
[1755946139173,26.0,203.06,203.05,0.03]
[1755946139347,70.5135426,203.06,203.05,0.03]
[1755946139547,71.0935426,203.06,203.05,0.03]
[1755946139763,73.0652006,203.06,203.05,0.03]
[1755946140567,27.971658,203.06,203.05,0.03]
[1755946140896,72.4852006,203.06,203.05,0.03]
[1755946141382,73.0652006,203.06,203.05,0.03]
[1755946141676,86.94511775,203.06,203.05,0.03]
[1755946141984,86.94511775,203.06,202.98,0.1]
[1755946141985,23.87991715,203.03,202.98,0.1]
[1755946142191,20.41345975,203.03,202.98,0.1]
[1755946142501,59.00345975,203.03,202.98,0.1]
[1755946142664,69.00345975,203.03,202.98,0.1]
[1755946143669,59.00345975,203.03,202.98,0.1]
[1755946143971,69.00345975,203.03,202.98,0.1]
[1755946144171,59.00345975,203.03,202.98,0.1]
[1755946144468,72.70229556,203.03,202.98,0.1]
[1755946145486,72.76229556,203.03,202.98,0.1]
[1755946145791,74.73453556,203.03,202.98,0.1]
[1755946146966,36.69453556,203.03,202.98,0.1]
[1755946147187,74.73453556,203.03,202.98,0.1]
[1755946147388,36.69453556,203.03,202.98,0.1]
[1755946147586,74.71453556,203.03,202.98,0.1]
[1755946147787,54.48215715,203.03,202.98,0.1]
[1755946147993,64.71453556,203.03,202.98,0.1]
[1755946148191,26.69453556,203.03,202.98,0.1]
[1755946148410,64.71453556,203.03,202.98,0.1]
[1755946149289,64.71453556,203.03,202.98,0.78]
[1755946153010,64.16453556,203.03,202.98,0.78]
[1755946153183,64.71453556,203.03,202.98,0.1]
[1755946153584,39.59559401,203.0,202.98,0.1]
[1755946153789,88.11229556,203.0,202.98,0.1]
[1755946154006,88.66229556,203.0,202.98,0.1]
[1755946154305,90.08482856,203.0,202.98,0.1]
[1755946156075,90.10482856,203.0,202.98,0.1]
[1755946158120,52.08482856,203.0,202.98,0.1]
[1755946158321,90.10482856,203.0,202.98,0.1]
[1755946159199,52.08482856,203.0,202.99,0.71]
[1755946159416,90.10482856,203.0,202.99,0.71]
[1755946159996,90.10482856,203.0,202.99,0.03]
[1755946162332,52.63482856,203.0,202.99,0.03]
[1755946162534,90.63482856,203.0,202.99,0.03]
[1755946162832,52.63482856,203.0,202.99,0.03]
[1755946163023,90.65482856,203.0,202.99,0.03]
[1755946163224,80.42245015,203.0,202.99,0.03]
[1755946163402,90.65482856,203.0,202.99,0.03]
[1755946164208,90.10482856,203.0,202.99,0.71]
[1755946164407,86.42245248,203.0,202.99,0.03]
[1755946164798,79.87245015,203.0,202.99,0.03]
[1755946165026,86.42245248,203.0,202.99,0.03]
[1755946165734,48.40245248,203.0,202.99,0.03]
[1755946165902,86.42245248,203.0,202.99,0.03]
[1755946166443,90.10777513,203.0,202.99,0.03]
[1755946174031,0.06,203.03,202.99,0.71]
[1755946174215,37.98,203.02,202.99,10.94532498]
[1755946174408,37.98,203.02,203.0,0.68]
[1755946174918,10.23532498,203.01,203.0,0.68]
[1755946175228,10.23532498,203.01,202.99,0.03]
[1755946175424,38.06,203.0,202.99,0.03]
[1755946176134,38.06,203.0,202.99,0.71]
[1755946178448,38.04,203.0,202.99,0.71]
[1755946180063,10.29532498,203.02,202.99,0.71]
[1755946180359,38.04,203.01,202.99,0.71]
[1755946181637,38.04,203.01,203.0,0.68]
[1755946182642,38.02,203.01,203.0,0.68]
[1755946182838,117.02,203.01,203.0,0.68]
[1755946184759,79.0,203.01,203.0,0.68]
[1755946184925,117.02,203.01,203.0,0.68]
[1755946188534,79.0,203.01,203.0,0.68]
[1755946188739,38.0,203.01,203.0,0.68]
[1755946192748,0.06,203.02,203.0,0.68]
[1755946192944,37.96,203.01,203.0,0.68]
[1755946193260,37.96,203.01,202.99,0.03]
[1755946193560,0.06,203.02,202.99,0.03]
[1755946193747,37.96,203.01,203.0,0.68]
[1755946194659,116.96,203.01,203.0,0.68]
[1755946197540,123.50566275,203.01,202.99,0.03]
[1755946198163,123.50566275,203.01,202.99,0.75]
[1755946198546,123.50566275,203.01,203.0,0.72]
[1755946199165,123.50566275,203.01,202.99,0.03]
[1755946199767,7.09566275,203.0,202.99,0.03]
[1755946199952,6.54566275,203.0,202.99,0.03]
[1755946200475,20.9755799,203.0,202.99,0.03]
[1755946200642,22.9480159,203.0,202.99,0.03]
[1755946202573,60.9080159,203.0,202.99,0.03]
[1755946203770,22.9480159,203.0,202.99,0.03]
[1755946203951,60.9080159,203.0,202.99,0.03]
[1755946206172,60.9080159,203.0,202.98,0.1]
[1755946206173,227.27991715,202.99,202.98,0.1]
[1755946206384,233.8255799,202.99,202.98,0.1]
[1755946206550,234.3755799,202.99,202.98,0.1]
[1755946207085,238.26824174,202.99,202.98,0.1]
[1755946207385,234.3755799,202.99,202.98,0.1]
[1755946209277,92.78991715,202.95,202.93,0.03]
[1755946209462,58.3855799,202.95,202.93,0.03]
[1755946209862,60.9087939,202.95,202.93,0.03]
[1755946210391,26.64513295,202.95,202.93,0.03]
[1755946210587,64.60513295,202.95,202.93,0.03]
[1755946212778,25.95297138,202.95,202.93,0.03]
[1755946212984,89.93297138,202.95,202.94,0.75]
[1755946213367,1.973214,202.95,202.94,0.75]
[1755946213668,48.2220018,202.95,202.94,0.75]
[1755946214570,37.98,202.95,202.94,0.75]
[1755946214764,48.2220018,202.95,202.94,0.75]
[1755946216053,62.10191895,202.95,202.94,0.03]
[1755946216365,64.07484095,202.95,202.94,0.03]
[1755946216954,50.47924694,202.95,202.94,0.03]
[1755946217152,74.2420018,202.95,202.94,0.75]
[1755946218082,10.2420018,202.95,202.94,0.75]
[1755946218294,48.2420018,202.95,202.94,0.75]
[1755946220573,36.2420018,202.95,202.94,0.03]
[1755946220796,74.2420018,202.95,202.94,0.75]
[1755946221717,36.2420018,202.95,202.94,0.75]
[1755946221879,74.2220018,202.95,202.94,0.75]
[1755946223984,63.98,202.95,202.94,0.75]
[1755946224181,74.2220018,202.95,202.94,0.75]
[1755946226376,74.2220018,202.95,202.94,0.03]
[1755946226703,74.2220018,202.95,202.94,0.75]
[1755946229207,36.3020018,202.95,202.94,0.75]
[1755946229502,74.2820018,202.95,202.94,0.75]
[1755946231779,64.04,202.95,202.94,0.75]
[1755946232078,74.2820018,202.95,202.94,0.75]
[1755946232279,70.59072653,202.95,202.94,0.75]
[1755946234604,32.61072653,202.95,202.94,0.75]
[1755946234803,70.59072653,202.95,202.94,0.75]
[1755946236086,72.56335653,202.95,202.94,0.75]
[1755946236801,73.86335653,202.95,202.94,0.03]
[1755946237903,35.88335653,202.95,202.94,0.03]
[1755946238103,71.89072653,202.95,202.94,0.69]
[1755946239288,33.91072653,202.95,202.94,0.69]
[1755946239489,71.89072653,202.95,202.94,0.69]
[1755946241505,33.91072653,202.95,202.94,0.03]
[1755946241686,71.89072653,202.95,202.94,0.03]
[1755946242090,73.86335653,202.95,202.94,0.03]
[1755946242488,67.31263,202.95,202.94,0.03]
[1755946242690,73.86335653,202.95,202.94,0.03]
[1755946244989,71.89072653,202.95,202.94,0.69]
[1755946246798,65.34,202.95,202.94,0.69]
[1755946246995,71.89072653,202.95,202.94,0.69]
[1755946247924,33.91072653,202.95,202.94,0.69]
[1755946248096,71.87072653,202.95,202.94,0.69]
[1755946253725,65.32,202.95,202.94,0.69]
[1755946253926,71.87072653,202.95,202.94,0.69]
[1755946255033,33.91072653,202.95,202.94,0.69]
[1755946255406,71.87072653,202.95,202.94,0.69]
[1755946256820,33.91072653,202.95,202.94,0.69]
[1755946257135,0.06,202.95,202.94,7.24072653]
[1755946263036,0.06,202.95,202.94,0.69]
[1755946263368,0.06,202.95,202.94,0.7]
[1755946266158,7.16072653,202.95,202.94,0.03]
[1755946266364,21.04064368,202.95,202.94,0.03]
[1755946266660,23.01337068,202.95,202.94,0.03]
[1755946268346,26.70155494,202.95,202.94,0.03]
[1755946270473,13.87991715,202.94,202.93,0.03]
[1755946270777,24.66882794,202.94,202.93,0.03]
[1755946271140,26.64213894,202.94,202.93,0.03]
[1755946271563,26.64213894,202.94,202.92,0.03]
[1755946271740,62.62882794,202.93,202.92,0.03]
[1755946272245,64.60213894,202.93,202.92,0.03]
[1755946273143,39.59559401,202.9,202.89,0.03]
[1755946273449,77.83991715,202.9,202.89,0.03]
[1755946273639,50.11882794,202.9,202.89,0.03]
[1755946273841,52.09223594,202.9,202.89,0.03]
[1755946274037,90.05223594,202.9,202.89,0.03]
[1755946274272,64.60223594,202.9,202.89,0.03]
[1755946274968,26.64223594,202.9,202.89,0.03]
[1755946275341,64.60223594,202.9,202.89,0.03]
[1755946275542,26.64223594,202.9,202.89,0.03]
[1755946275752,64.60223594,202.9,202.89,0.03]
[1755946276076,26.64223594,202.9,202.89,0.03]
[1755946276264,53.81332515,202.9,202.89,0.03]
[1755946276464,64.05223594,202.9,202.89,0.03]
[1755946277969,64.60223594,202.9,202.89,0.03]
[1755946278959,64.05223594,202.9,202.89,0.03]
[1755946281146,64.60223594,202.9,202.89,0.03]
[1755946281346,64.05223594,202.9,202.89,0.03]
[1755946284458,1.973408,202.9,202.89,0.7]
[1755946284650,10.23891079,202.93,202.89,0.7]
[1755946284850,37.98,202.92,202.89,0.7]
[1755946285877,48.21891079,202.92,202.89,0.03]
[1755946286056,48.21891079,202.92,202.9,0.67]
[1755946286259,48.21891079,202.92,202.91,0.67]
[1755946286956,37.98,202.92,202.91,0.67]
[1755946290476,0.06,202.97,202.91,10.90891079]
[1755946290685,38.04,202.97,202.93,10.23891079]
[1755946290885,0.06,202.97,202.94,0.69]
[1755946291114,0.06,202.97,202.94,10.92891079]
[1755946292261,0.06,202.97,202.94,9.42891079]
[1755946293867,0.06,202.97,202.94,10.23891079]
[1755946294072,0.06,202.97,202.93,10.23891079]
[1755946294296,0.06,202.97,202.94,0.69]
[1755946295108,10.29891079,202.97,202.92,0.69]
[1755946295289,10.29891079,202.97,202.93,0.69]
[1755946295605,37.98,202.96,202.93,0.69]
[1755946295774,37.98,202.96,202.91,10.23891079]
[1755946295975,11.00891079,202.95,202.91,0.69]
[1755946296392,0.06,202.95,202.92,0.69]
[1755946296599,38.06,202.95,202.94,0.03]
[1755946298286,48.29891079,202.95,202.94,0.03]
[1755946298489,49.00891079,202.95,202.94,0.03]
[1755946299293,48.29891079,202.95,202.94,0.03]
[1755946299986,38.06,202.95,202.94,0.03]
[1755946301207,117.06,202.95,202.94,0.03]
[1755946301590,127.29891079,202.95,202.94,0.03]
[1755946302104,117.06,202.95,202.94,0.03]
[1755946302304,127.29891079,202.95,202.94,0.03]
[1755946305110,127.27891079,202.95,202.94,0.03]
[1755946305305,127.25891079,202.95,202.94,0.03]
[1755946306919,127.96891079,202.95,202.94,0.03]
[1755946307390,127.25891079,202.95,202.94,0.03]
[1755946309519,89.29891079,202.95,202.94,0.03]
[1755946309705,127.25891079,202.95,202.94,0.03]
[1755946309904,127.96891079,202.95,202.94,0.03]
[1755946311219,127.25891079,202.95,202.94,0.03]
[1755946311417,127.96891079,202.95,202.94,0.03]
[1755946311925,127.25891079,202.95,202.94,0.03]
[1755946312430,127.96891079,202.95,202.94,0.03]
[1755946313135,62.84882794,202.95,202.94,0.03]
[1755946313425,64.82174894,202.95,202.94,0.03]
[1755946315920,50.94183179,202.95,202.94,0.03]
[1755946316121,48.25891079,202.95,202.94,0.03]
[1755946317027,48.25891079,202.95,202.91,0.72]
[1755946317028,13.87991715,202.94,202.91,0.03]
[1755946317330,13.87991715,202.91,202.89,0.03]
[1755946317534,151.36082906,202.95,202.89,0.03]
[1755946317535,24.11882794,202.9,202.89,0.03]
[1755946317704,24.82882794,202.9,202.89,0.03]
[1755946319499,26.0,202.88,202.87,0.1]
[1755946319738,36.23891079,202.88,202.87,0.1]
[1755946320047,36.94891079,202.88,202.87,0.1]
[1755946320729,38.92261079,202.88,202.87,0.1]
[1755946323338,38.21261079,202.88,202.87,0.1]
[1755946323840,38.92261079,202.88,202.87,0.1]
[1755946324021,38.21261079,202.88,202.87,0.1]
[1755946326010,41.85361715,202.88,202.87,0.1]
[1755946326234,52.09252794,202.88,202.87,0.1]
[1755946330457,52.80252794,202.88,202.87,0.1]
[1755946330654,42.56361715,202.88,202.87,0.1]
[1755946330956,52.09252794,202.88,202.87,0.1]
[1755946331343,52.80252794,202.88,202.87,0.1]
[1755946333358,52.09252794,202.88,202.87,0.1]
[1755946335281,52.80252794,202.88,202.87,0.1]
[1755946337079,52.09252794,202.88,202.87,0.1]
[1755946341978,52.80252794,202.88,202.87,0.1]
[1755946342470,52.09252794,202.88,202.87,0.1]
[1755946347279,52.80252794,202.88,202.87,0.1]
[1755946353479,52.80252794,202.88,202.84,0.03]
[1755946353480,39.87991715,202.85,202.84,0.03]
[1755946353663,50.11882794,202.85,202.84,0.03]
[1755946353859,50.77882794,202.85,202.84,0.03]
[1755946354059,52.75291794,202.85,202.84,0.03]
[1755946362206,57.68266898,202.85,202.84,0.03]
[1755946366307,41.85400715,202.85,202.84,0.03]
[1755946366599,41.85400715,202.85,202.74,6.56064616]
[1755946366600,13.87991715,202.84,202.75,6.11064616]
[1755946366898,6.56064616,202.82,202.76,6.56064616]
[1755946367111,6.56064616,202.81,202.75,6.56064616]
[1755946368304,10.24770182,202.82,202.75,10.24770182]
[1755946368500,119.803484,202.83,202.75,10.24770182]
[1755946368809,10.24770182,202.82,202.76,0.69]